bitfinex/quotes_SOLUSD_20250403
["timestamp","ask_amount","ask_price","bid_price","bid_amount"]
[1743706037750,38.79181043,115.81,115.77,42.43541556]
[1743706037939,0.14216157,115.8,115.76,51.07391556]
[1743706038146,38.79181043,115.81,115.77,42.43541556]
[1743706038368,38.79181043,115.81,115.78,42.43541556]
[1743706039248,38.79181043,115.81,115.79,8.6363]
[1743706039554,18.79181043,115.81,115.79,8.6363]
[1743706039751,99.98972314,115.82,115.79,51.07171556]
[1743706039949,91.6254,115.82,115.79,51.07171556]
[1743706040345,81.51154913,115.81,115.76,42.43541556]
[1743706040552,0.42648471,115.79,115.76,42.43541556]
[1743706041258,0.42648471,115.79,115.76,51.07371556]
[1743706041457,92.05188471,115.79,115.76,51.07371556]
[1743706042157,92.05188471,115.79,115.77,42.43541556]
[1743706042349,91.6254,115.79,115.77,42.43541556]
[1743706042552,91.6254,115.79,115.78,42.43541556]
[1743706042760,91.6254,115.79,115.77,42.43541556]
[1743706043166,91.6254,115.79,115.76,51.07371556]
[1743706043367,91.6254,115.79,115.77,42.43541556]
[1743706043562,19.07613357,115.79,115.76,51.07371556]
[1743706044069,19.07613357,115.77,115.74,8.64]
[1743706044263,110.70153357,115.77,115.74,8.64]
[1743706044647,110.70153357,115.77,115.74,51.07541556]
[1743706045459,110.70153357,115.77,115.75,42.43541556]
[1743706046077,110.70153357,115.77,115.74,42.43541556]
[1743706046263,110.70153357,115.77,115.75,42.43541556]
[1743706046448,91.6254,115.8,115.76,42.43541556]
[1743706046654,130.41721043,115.81,115.78,42.43541556]
[1743706047154,130.41721043,115.81,115.77,42.43541556]
[1743706047360,18.933972,115.8,115.77,42.43541556]
[1743706047558,18.933972,115.8,115.77,8.6378]
[1743706047763,0.14216157,115.79,115.76,35.10017524]
[1743706047956,18.933972,115.8,115.76,35.10017524]
[1743706048145,18.933972,115.8,115.77,26.46197524]
[1743706048351,111.76756157,115.81,115.77,26.46197524]
[1743706049465,111.76756157,115.81,115.78,8.637]
[1743706049668,19.07613357,115.8,115.77,8.6378]
[1743706050052,20.0,115.81,115.77,35.09977524]
[1743706051767,46.46197524,115.81,115.77,8.6378]
[1743706052170,19.07613357,115.8,115.77,8.6378]
[1743706052358,45.53810881,115.8,115.77,8.6378]
[1743706052558,19.07613357,115.78,115.76,8.6381]
[1743706053773,20.0,115.79,115.76,8.6381]
[1743706054086,16.7143,115.82,115.72,43.2077]
[1743706054087,20.0,115.77,115.73,8.6408]
[1743706054257,18.933972,115.73,115.69,26.46197524]
[1743706055467,18.933972,115.73,115.7,8.643]
[1743706055860,136.14216157,115.74,115.7,30.2506]
[1743706056064,26.72964886,115.76,115.72,26.46197524]
[1743706057168,8.08,115.76,115.73,26.46197524]
[1743706057354,18.64964886,115.78,115.75,35.10127524]
[1743706057558,156.0,115.82,115.77,26.46197524]
[1743706057865,136.0,115.82,115.8,42.3150196]
[1743706058167,70.3950196,115.83,115.78,42.3150196]
[1743706058362,70.3950196,115.83,115.77,42.3150196]
[1743706058363,0.14216157,115.8,115.77,42.3150196]
[1743706058571,18.79181043,115.8,115.77,42.3150196]
[1743706059372,18.79181043,115.8,115.78,8.637]
[1743706060184,136.0,115.81,115.79,42.3150196]
[1743706060562,136.0,115.81,115.78,8.637]
[1743706060762,38.79181043,115.83,115.79,42.3150196]
[1743706060977,18.79181043,115.83,115.79,42.3150196]
[1743706061560,156.0,115.85,115.81,42.3150196]
[1743706061869,156.0,115.85,115.8,72.5394196]
[1743706061870,18.64964886,115.84,115.8,72.5394196]
[1743706062074,42.45718117,115.83,115.8,8.6355]
[1743706062389,0.14216157,115.83,115.8,8.6355]
[1743706062678,42.45718117,115.83,115.8,8.6355]
[1743706062883,0.42648471,115.83,115.8,8.6355]
[1743706063187,18.64964886,115.82,115.8,8.6355]
[1743706063480,0.42648471,115.81,115.76,23.2371]
[1743706063686,60.96466846,115.79,115.74,42.3150196]
[1743706064487,60.96466846,115.79,115.75,8.6393]
[1743706064870,18.64964886,115.79,115.75,50.9543196]
[1743706065073,136.0,115.8,115.75,8.6393]
[1743706065280,136.0,115.8,115.75,30.2375]
[1743706065480,136.0,115.8,115.77,42.3150196]
[1743706065783,18.64964886,115.82,115.78,8.637]
[1743706066088,18.64964886,115.82,115.78,50.9520196]
[1743706066383,18.64964886,115.84,115.8,42.3150196]
[1743706066683,144.44216157,115.86,115.81,42.3150196]
[1743706066883,18.79181043,115.86,115.78,40.1718]
[1743706067064,152.184,115.88,115.82,42.3150196]
[1743706067270,42.3150196,115.88,115.83,42.3150196]
[1743706067464,42.45718117,115.88,115.83,42.3150196]
[1743706067780,18.64964886,115.87,115.84,8.6325]
[1743706068083,32.06164886,115.87,115.84,8.6325]
[1743706068390,18.64964886,115.86,115.84,8.6325]
[1743706068591,28.6286,115.9,115.84,8.6325]
[1743706068592,42.3150196,115.91,115.85,42.3150196]
[1743706068760,20.0,115.92,115.87,42.3150196]
[1743706069082,42.3150196,115.92,115.87,42.3150196]
[1743706069285,42.3150196,115.93,115.84,31.7741]
[1743706069500,13.412,115.91,115.86,42.3150196]
[1743706069669,13.412,115.91,115.9,50.9431196]
[1743706069866,13.412,115.91,115.9,8.6281]
[1743706070184,32.06164886,115.91,115.9,8.6281]
[1743706070385,18.64964886,115.9,115.86,63.8923196]
[1743706070687,50.7150196,115.91,115.87,8.6303]
[1743706071273,8.4,115.91,115.87,8.6303]
[1743706071469,27.04964886,115.91,115.87,50.9453196]
[1743706071681,27.04964886,115.91,115.86,42.3150196]
[1743706071682,42.3150196,115.9,115.86,42.3150196]
[1743706071985,42.3150196,115.9,115.85,72.5264196]
[1743706072379,42.3150196,115.89,115.85,8.6318]
[1743706072691,18.64964886,115.9,115.85,8.6318]
[1743706072894,42.3150196,115.89,115.85,8.6318]
[1743706073670,18.64964886,115.88,115.85,8.6318]
[1743706074004,18.64964886,115.88,115.84,42.3150196]
[1743706074173,60.96466846,115.88,115.83,72.5316196]
[1743706074371,18.64964886,115.88,115.83,72.5316196]
[1743706074594,60.96466846,115.88,115.83,72.5316196]
[1743706074798,60.96466846,115.88,115.83,30.2166]
[1743706074970,60.96466846,115.85,115.82,8.634]
[1743706075891,60.96466846,115.85,115.8,42.3150196]
[1743706076790,18.64964886,115.83,115.79,72.5415196]
[1743706077100,60.96466846,115.83,115.79,8.6363]
[1743706077387,42.3150196,115.82,115.79,8.6363]
[1743706077704,18.64964886,115.79,115.78,8.6367]
[1743706077903,18.64964886,115.79,115.76,8.6385]
[1743706078412,18.64964886,115.79,115.76,50.9535196]
[1743706078699,18.64964886,115.79,115.76,72.5499196]
[1743706078909,18.64964886,115.79,115.76,30.2349]
[1743706079111,18.64964886,115.79,115.76,8.6385]
[1743706079481,60.96466846,115.79,115.76,8.6385]
[1743706079887,18.64964886,115.79,115.76,8.6385]
[1743706081885,42.3150196,115.78,115.76,8.6385]
[1743706082290,42.3150196,115.78,115.74,8.6393]
[1743706082291,18.64964886,115.77,115.74,8.6393]
[1743706082487,18.64964886,115.77,115.74,50.9543196]
[1743706083917,18.64964886,115.78,115.74,72.5544196]
[1743706084110,164.48,115.79,115.77,42.3150196]
[1743706084111,136.0,115.79,115.77,42.3150196]
[1743706084313,42.45718117,115.83,115.78,42.3150196]
[1743706084608,0.14216157,115.84,115.8,42.3150196]
[1743706084777,19.07613357,115.84,115.81,42.3150196]
[1743706084983,0.14216157,115.85,115.82,42.3150196]
[1743706085195,42.3150196,115.88,115.83,42.3150196]
[1743706085408,19.07613357,115.88,115.84,42.3150196]
[1743706085590,13.412,115.87,115.84,42.3150196]
[1743706085919,18.64964886,115.86,115.84,8.6325]
[1743706086382,0.28432314,115.86,115.84,8.6325]
[1743706086577,80.96466846,115.87,115.84,8.6325]
[1743706086578,136.0,115.89,115.84,50.9475196]
[1743706086796,0.14216157,115.88,115.84,50.9475196]
[1743706086997,18.79181043,115.88,115.84,50.9475196]
[1743706087204,13.412,115.87,115.84,8.6325]
[1743706087517,0.28432314,115.86,115.84,8.6325]
[1743706087679,0.14216157,115.85,115.83,8.633]
[1743706087883,0.14216157,115.85,115.82,8.634]
[1743706088400,168.345972,115.86,115.82,72.5342196]
[1743706088606,154.933972,115.86,115.83,42.3150196]
[1743706089003,8.42,115.87,115.84,42.3150196]
[1743706089888,8.42,115.87,115.85,8.6318]
[1743706090381,186.7150196,115.9,115.85,50.9468196]
[1743706090593,18.64964886,115.89,115.85,72.5264196]
[1743706090909,136.14216157,115.91,115.87,42.3150196]
[1743706090910,13.412,115.88,115.87,42.3150196]
[1743706091982,21.5593,115.96,115.87,72.5212196]
[1743706092288,42.3150196,115.97,115.92,42.3150196]
[1743706092899,42.3150196,115.96,115.91,42.3150196]
[1743706093089,18.64964886,115.94,115.91,42.3150196]
[1743706093494,0.28432314,115.93,115.87,30.2062]
[1743706093681,18.64964886,115.92,115.88,42.3150196]
[1743706093885,18.64964886,115.92,115.89,8.6288]
[1743706094083,18.64964886,115.92,115.89,50.9438196]
[1743706094285,18.64964886,115.93,115.89,50.9438196]
[1743706094804,60.96466846,115.93,115.89,8.6288]
[1743706095207,0.42648471,115.92,115.89,8.6288]
[1743706095596,18.64964886,115.93,115.89,50.9438196]
[1743706096208,18.64964886,115.93,115.89,8.6288]
[1743706096413,60.96466846,115.93,115.89,8.6288]
[1743706096885,27.27554886,115.93,115.89,8.6288]
[1743706097092,18.64964886,115.93,115.89,8.6288]
[1743706097427,0.42648471,115.92,115.88,42.3150196]
[1743706097593,18.64964886,115.93,115.88,42.3150196]
[1743706097786,60.96466846,115.93,115.88,42.3150196]
[1743706098007,60.96466846,115.93,115.89,8.6288]
[1743706098406,0.42648471,115.92,115.88,8.6293]
[1743706098721,42.3150196,115.91,115.87,8.63]
[1743706098888,18.64964886,115.9,115.87,8.63]
[1743706100211,60.96466846,115.9,115.87,8.63]
[1743706100430,42.3150196,115.89,115.86,8.6307]
[1743706100728,69.44466846,115.9,115.86,8.6307]
[1743706100926,78.07276846,115.9,115.86,8.6307]
[1743706101095,69.44466846,115.9,115.86,8.6307]
[1743706101295,78.07276846,115.9,115.86,8.6307]
[1743706101796,27.12964886,115.9,115.86,8.6307]
[1743706101998,27.12964886,115.9,115.86,50.9457196]
[1743706102196,27.12964886,115.9,115.86,72.5234196]
[1743706102404,18.64964886,115.9,115.86,30.2084]
[1743706102606,20.42648471,115.92,115.87,42.3150196]
[1743706102918,18.64964886,115.91,115.87,42.3150196]
[1743706103130,18.64964886,115.91,115.86,30.2084]
[1743706103131,60.96466846,115.91,115.86,72.5234196]
[1743706103412,42.74150431,115.9,115.86,8.6307]
[1743706103619,0.42648471,115.9,115.86,8.6307]
[1743706103920,42.74150431,115.9,115.86,8.6307]
[1743706104218,9.05458471,115.9,115.86,8.6307]
[1743706104518,42.74150431,115.9,115.86,8.6307]
[1743706104704,51.36970431,115.9,115.86,8.6307]
[1743706104899,42.74150431,115.9,115.86,8.6307]
[1743706105620,42.59934274,115.9,115.86,8.6307]
[1743706106214,18.64964886,115.89,115.86,8.6307]
[1743706106807,42.3150196,115.87,115.82,21.5847]
[1743706107111,42.3150196,115.87,115.82,63.8997196]
[1743706107315,0.14216157,115.88,115.82,63.8997196]
[1743706107527,0.28432314,115.88,115.83,72.5316196]
[1743706107705,0.14216157,115.93,115.87,42.3150196]
[1743706107899,0.14216157,115.93,115.9,42.3150196]
[1743706108103,136.0,115.94,115.9,42.3150196]
[1743706108297,136.0,115.94,115.89,42.3150196]
[1743706108298,20.0,115.93,115.89,42.3150196]
[1743706108526,62.3150196,115.93,115.86,1.5645]
[1743706108735,198.3150196,115.93,115.88,42.3150196]
[1743706108904,178.3150196,115.93,115.88,42.3150196]
[1743706109407,198.3150196,115.93,115.87,30.2062]
[1743706109608,61.2489916,115.92,115.87,8.6303]
[1743706109927,18.933972,115.89,115.86,8.6307]
[1743706110241,18.79181043,115.89,115.84,50.9475196]
[1743706110524,42.3150196,115.91,115.85,42.3150196]
[1743706110700,42.3150196,115.92,115.87,42.3150196]
[1743706110903,164.66,115.93,115.87,42.3150196]
[1743706111124,42.3150196,115.91,115.86,42.3150196]
[1743706111428,42.3150196,115.89,115.84,72.5289196]
[1743706111928,136.0,115.91,115.84,72.5289196]
[1743706112219,42.3150196,115.9,115.85,42.3150196]
[1743706112430,42.3150196,115.9,115.86,8.6311]
[1743706113224,42.3150196,115.89,115.86,8.6311]
[1743706113598,42.3150196,115.88,115.86,8.6311]
[1743706114414,42.3150196,115.88,115.82,8.634]
[1743706114415,42.3150196,115.87,115.82,8.634]
[1743706114616,42.3150196,115.86,115.82,8.634]
[1743706115212,42.3150196,115.83,115.81,8.6347]
[1743706115734,42.3150196,115.83,115.8,8.6355]
[1743706115932,42.3150196,115.82,115.8,8.6355]
[1743706116312,47.30964886,115.84,115.79,8.6363]
[1743706116527,42.3150196,115.83,115.79,8.6363]
[1743706116727,42.3150196,115.83,115.79,30.2271]
[1743706117137,42.3150196,115.83,115.79,8.6363]
[1743706117450,42.3150196,115.82,115.79,8.6363]
[1743706117611,0.42648471,115.83,115.79,8.6363]
[1743706117811,42.74150431,115.83,115.79,8.6363]
[1743706118119,42.3150196,115.82,115.79,8.6363]
[1743706118434,42.3150196,115.82,115.77,65.5614196]
[1743706118435,42.3150196,115.82,115.78,8.637]
[1743706118609,156.0,115.87,115.81,42.3150196]
[1743706118936,0.14216157,115.88,115.8,42.3150196]
[1743706119111,0.14216157,115.9,115.85,42.3150196]
[1743706119434,0.14216157,115.9,115.86,42.3150196]
[1743706119615,136.0,115.93,115.84,27.504]
[1743706119831,136.0,115.93,115.86,26.0]
[1743706120132,136.0,115.93,115.86,68.3150196]
[1743706120328,42.3150196,115.92,115.84,10.804]
[1743706120530,0.14216157,115.92,115.85,30.2114]
[1743706120729,18.79181043,115.92,115.86,42.3150196]
[1743706121036,42.3150196,115.91,115.85,30.2114]
[1743706121334,42.3150196,115.91,115.86,42.3150196]
[1743706121545,42.3150196,115.91,115.85,30.2114]
[1743706121836,18.79181043,115.92,115.86,42.3150196]
[1743706122032,18.79181043,115.92,115.85,30.2114]
[1743706122033,42.3150196,115.9,115.85,30.2114]
[1743706122210,18.79181043,115.91,115.85,72.5264196]
[1743706122411,18.64964886,115.91,115.86,42.3150196]
[1743706122607,60.96466846,115.91,115.87,8.6303]
[1743706122923,42.3150196,115.9,115.87,8.6303]
[1743706123724,42.3150196,115.91,115.87,8.6303]
[1743706124037,187.7750196,115.92,115.87,8.6303]
[1743706124348,187.7750196,115.92,115.87,50.9453196]
[1743706124349,145.46,115.92,115.87,50.9453196]
[1743706124533,136.0,115.92,115.89,42.3150196]
[1743706124723,136.0,115.92,115.88,42.3150196]
[1743706125047,42.3150196,115.93,115.88,42.3150196]
[1743706125338,52.2312024,115.95,115.88,42.3150196]
[1743706125542,18.64964886,115.92,115.87,72.5212196]
[1743706125731,0.14216157,115.93,115.87,8.6303]
[1743706125925,42.3150196,115.92,115.87,50.9453196]
[1743706126321,60.96466846,115.93,115.87,50.9453196]
[1743706126534,18.64964886,115.93,115.89,8.6288]
[1743706126816,42.3150196,115.92,115.89,8.6288]
[1743706127021,18.64964886,115.9,115.85,8.6318]
[1743706127223,42.3150196,115.88,115.85,30.2114]
[1743706127523,18.64964886,115.9,115.85,30.2114]
[1743706127722,4.81489197,115.95,115.87,42.3150196]
[1743706127924,18.64964886,115.94,115.9,42.3150196]
[1743706128123,18.64964886,115.94,115.86,42.3150196]
[1743706128325,60.96466846,115.94,115.89,42.3150196]
[1743706128853,18.64964886,115.94,115.9,8.6281]
[1743706129223,60.96466846,115.94,115.9,8.6281]
[1743706129644,42.3150196,115.93,115.9,8.6281]
[1743706130033,38.64964886,115.94,115.9,8.6281]
[1743706130218,42.3150196,115.93,115.9,8.6281]
[1743706130421,9.52,115.92,115.86,8.6311]
[1743706130631,9.52,115.92,115.85,43.1592]
[1743706130632,9.52,115.92,115.87,72.5212196]
[1743706131122,42.3150196,115.91,115.87,30.2062]
[1743706131324,9.52,115.92,115.87,30.2062]
[1743706131565,42.3150196,115.91,115.87,30.2062]
[1743706132338,42.3150196,115.88,115.85,8.6318]
[1743706132841,42.3150196,115.89,115.85,8.6318]
[1743706133042,42.3150196,115.89,115.85,30.2114]
[1743706133742,42.3150196,115.88,115.85,30.2114]
[1743706133929,136.0,115.91,115.86,42.3150196]
[1743706134132,51.8350196,115.92,115.86,42.3150196]
[1743706134337,42.3150196,115.9,115.85,30.2114]
[1743706134526,42.3150196,115.89,115.85,30.2114]
[1743706135231,42.3150196,115.87,115.85,8.6318]
[1743706135925,42.3150196,115.88,115.85,8.6318]
[1743706137050,42.3150196,115.88,115.84,8.6325]
[1743706137651,42.3150196,115.88,115.84,30.2139]
[1743706138356,42.3150196,115.92,115.86,43.8902196]
[1743706138534,42.3150196,115.91,115.86,43.8902196]
[1743706139186,18.64964886,115.93,115.88,42.3150196]
[1743706139473,4.81489197,115.95,115.87,79.4869]
[1743706139969,60.96466846,115.93,115.87,79.4869]
[1743706140251,42.3150196,115.92,115.87,79.4869]
[1743706140470,18.64964886,115.93,115.87,36.3351]
[1743706140638,42.3150196,115.92,115.87,36.3351]
[1743706141055,60.96466846,115.9,115.87,8.6303]
[1743706141259,60.96466846,115.9,115.86,8.6307]
[1743706141260,42.3150196,115.88,115.86,8.6307]
[1743706141456,42.3150196,115.87,115.86,8.6307]
[1743706141754,42.3150196,115.87,115.83,29.3188]
[1743706141972,68.7359196,115.92,115.84,72.5289196]
[1743706142276,42.3150196,115.9,115.85,42.3150196]
[1743706142443,42.3150196,115.9,115.84,30.2139]
[1743706142934,42.3150196,115.9,115.85,42.3150196]
[1743706143135,42.3150196,115.89,115.86,8.6311]
[1743706143459,18.64964886,115.91,115.86,8.6311]
[1743706143460,42.3150196,115.9,115.86,8.6311]
[1743706143960,42.3150196,115.89,115.86,8.6311]
[1743706144137,18.64964886,115.91,115.86,8.6311]
[1743706144663,42.3150196,115.9,115.86,30.2088]
[1743706144861,42.3150196,115.89,115.86,30.2088]
[1743706145239,42.3150196,115.89,115.86,21.5777]
[1743706145756,18.64964886,115.91,115.85,30.2114]
[1743706145939,42.3150196,115.9,115.85,30.2114]
[1743706146463,42.3150196,115.9,115.85,72.5264196]
[1743706146958,42.3150196,115.91,115.86,42.3150196]
[1743706147363,42.3150196,115.92,115.87,50.9453196]
[1743706147559,42.3150196,115.92,115.87,30.2062]
[1743706147761,42.3150196,115.9,115.87,8.6303]
[1743706147961,42.3150196,115.89,115.87,8.6303]
[1743706148155,71.28466846,115.88,115.84,8.6322]
[1743706148355,42.3150196,115.86,115.84,8.6322]
[1743706148559,42.3150196,115.85,115.82,8.634]
[1743706148756,52.6150196,115.85,115.82,8.634]
[1743706149646,42.3150196,115.84,115.81,8.6348]
[1743706149853,10.3,115.85,115.8,7.8703]
[1743706149854,42.3150196,115.83,115.8,8.6352]
[1743706150460,10.3,115.85,115.8,30.2241]
[1743706150659,52.6150196,115.85,115.8,72.5391196]
[1743706150846,60.96466846,115.84,115.8,30.2241]
[1743706151041,10.3,115.85,115.8,72.5391196]
[1743706151249,10.3,115.85,115.81,42.3150196]
[1743706151446,52.6150196,115.85,115.8,72.5391196]
[1743706152164,28.94964886,115.85,115.81,1.5421]
[1743706152348,52.6150196,115.85,115.81,1.5421]
[1743706152550,42.3150196,115.85,115.81,1.5421]
[1743706152757,42.3150196,115.84,115.81,1.5421]
[1743706152959,42.3150196,115.83,115.8,8.6352]
[1743706153362,42.3150196,115.84,115.8,8.6352]
[1743706155161,18.64964886,115.85,115.8,8.6352]
[1743706155359,42.3150196,115.84,115.8,8.6352]
[1743706155560,136.0,115.87,115.8,72.5391196]
[1743706155868,42.3150196,115.87,115.82,42.3150196]
[1743706156066,42.3150196,115.87,115.8,30.2241]
[1743706156067,42.3150196,115.85,115.8,30.2241]
[1743706156253,42.3150196,115.85,115.8,72.5391196]
[1743706156447,18.64964886,115.86,115.8,73.4019]
[1743706156654,60.96466846,115.86,115.81,42.3150196]
[1743706156868,6.0939,115.89,115.82,42.3150196]
[1743706157065,42.3150196,115.88,115.83,42.3150196]
[1743706157275,42.3150196,115.87,115.82,42.3150196]
[1743706158268,42.3150196,115.87,115.83,30.2166]
[1743706159471,18.933972,115.89,115.84,42.3150196]
[1743706159472,18.64964886,115.89,115.84,42.3150196]
[1743706159672,42.3150196,115.91,115.86,68.3150196]
[1743706159859,60.96466846,115.92,115.87,42.3150196]
[1743706160262,42.3150196,115.91,115.88,8.6296]
[1743706160461,18.64964886,115.88,115.85,8.6318]
[1743706160665,42.3150196,115.87,115.85,8.6318]
[1743706161351,60.96466846,115.88,115.85,8.6318]
[1743706162379,42.3150196,115.87,115.84,30.2128]
[1743706162780,20.42648471,115.91,115.84,30.2128]
[1743706162781,18.64964886,115.92,115.86,42.3150196]
[1743706162984,42.3150196,115.91,115.84,30.2128]
[1743706163280,42.3150196,115.89,115.84,30.2128]
[1743706163576,42.3150196,115.9,115.84,72.5278196]
[1743706163757,42.3150196,115.88,115.84,30.2128]
[1743706165079,42.3150196,115.86,115.84,8.6325]
[1743706165263,42.3150196,115.86,115.82,21.5847]
[1743706165264,42.3150196,115.85,115.82,8.634]
[1743706165470,42.3150196,115.83,115.81,8.6345]
[1743706165858,42.3150196,115.82,115.81,8.6345]
[1743706166059,42.3150196,115.82,115.78,23.2264]
[1743706166476,42.3150196,115.82,115.79,8.6363]
[1743706166656,42.3150196,115.82,115.78,8.6367]
[1743706166657,42.3150196,115.8,115.78,8.6367]
[1743706167282,18.64964886,115.82,115.78,50.9517196]
[1743706167574,20.0,115.86,115.79,48.7489196]
[1743706167759,18.79181043,115.87,115.82,42.3150196]
[1743706168180,42.3150196,115.87,115.82,42.3150196]
[1743706168561,42.3150196,115.88,115.83,42.3150196]
[1743706169078,60.96466846,115.89,115.83,42.3150196]
[1743706169260,42.3150196,115.88,115.83,42.3150196]
[1743706169669,42.3150196,115.85,115.81,30.2218]
[1743706170061,42.3150196,115.86,115.81,72.5368196]
[1743706170473,6.3883,115.91,115.81,72.5368196]
[1743706170474,142.3883,115.91,115.82,1.5923]
[1743706170658,0.14216157,115.93,115.86,42.3150196]
[1743706170864,42.3150196,115.9,115.85,6.3691]
[1743706171087,42.3150196,115.89,115.85,6.3691]
[1743706171256,42.3150196,115.9,115.85,48.6841196]
[1743706171456,42.3150196,115.89,115.84,42.3150196]
[1743706171868,0.14216157,115.91,115.85,42.3150196]
[1743706171869,0.42648471,115.91,115.85,42.3150196]
[1743706172179,0.28432314,115.91,115.85,42.3150196]
[1743706172379,42.3150196,115.91,115.86,42.3150196]
[1743706172574,42.3150196,115.91,115.87,8.6303]
[1743706173084,42.3150196,115.9,115.87,8.6303]
[1743706173479,42.3150196,115.91,115.87,8.6303]
[1743706173862,42.3150196,115.9,115.86,30.2076]
[1743706174361,28.91102314,115.92,115.86,8.6311]
[1743706174558,0.14216157,115.91,115.86,8.6311]
[1743706174763,42.3150196,115.88,115.86,30.2088]
[1743706174964,42.3150196,115.89,115.86,30.2088]
[1743706175685,42.3150196,115.88,115.86,8.6311]
[1743706176261,18.64964886,115.9,115.84,72.5287196]
[1743706176467,18.64964886,115.91,115.86,42.3150196]
[1743706176668,18.64964886,115.91,115.84,73.3766]
[1743706176669,18.64964886,115.91,115.87,42.3150196]
[1743706176866,42.3150196,115.9,115.85,42.3150196]
[1743706177270,42.3150196,115.89,115.84,115.6916196]
[1743706177687,18.64964886,115.91,115.85,42.3150196]
[1743706177984,42.3150196,115.9,115.85,42.3150196]
[1743706178180,18.64964886,115.91,115.84,73.3766]
[1743706178486,42.3150196,115.89,115.84,21.5812]
[1743706178690,18.64964886,115.91,115.84,21.5812]
[1743706179491,60.96466846,115.91,115.86,42.3150196]
[1743706179694,42.3150196,115.91,115.86,42.3150196]
[1743706180090,18.64964886,115.92,115.87,42.3150196]
[1743706180295,18.64964886,115.92,115.89,8.6288]
[1743706181605,42.3150196,115.93,115.89,30.2009]
[1743706181792,42.3150196,115.94,115.89,72.5159196]
[1743706182003,4.81489197,115.95,115.9,42.3150196]
[1743706182175,4.81489197,115.95,115.91,42.3150196]
[1743706182374,47.12991157,115.95,115.92,8.6266]
[1743706182582,4.81489197,115.95,115.92,8.6266]
[1743706182793,47.12991157,115.95,115.92,8.6266]
[1743706183094,42.3150196,115.94,115.92,8.6266]
[1743706183479,42.3150196,115.93,115.91,8.6273]
[1743706183689,42.3150196,115.92,115.91,8.6273]
[1743706183985,42.3150196,115.92,115.89,8.6288]
[1743706184172,42.3150196,115.9,115.89,8.6288]
[1743706184374,42.3150196,115.92,115.87,50.9453196]
[1743706184791,42.3150196,115.93,115.88,63.8876196]
[1743706185902,42.3150196,115.91,115.88,21.5726]
[1743706186083,42.3150196,115.9,115.87,8.6303]
[1743706186483,42.3150196,115.9,115.86,30.2081]
[1743706186680,42.3150196,115.89,115.86,30.2081]
[1743706187093,42.3150196,115.88,115.86,8.6311]
[1743706187404,42.3150196,115.87,115.85,8.6318]
[1743706187775,42.3150196,115.86,115.83,8.6333]
[1743706187983,42.3150196,115.84,115.8,8.6355]
[1743706188187,42.3150196,115.82,115.8,30.2235]
[1743706188387,18.79181043,115.85,115.8,30.2235]
[1743706188584,42.3150196,115.82,115.8,30.2235]
[1743706189274,42.3150196,115.83,115.8,30.2235]
[1743706189682,42.3150196,115.82,115.8,8.6355]
[1743706190507,42.3150196,115.82,115.79,8.6363]
[1743706191825,0.28432314,115.84,115.79,30.2271]
[1743706191998,42.3150196,115.83,115.79,30.2271]
[1743706192319,42.3150196,115.82,115.79,30.2271]
[1743706192903,42.3150196,115.81,115.79,8.6363]
[1743706194031,42.3150196,115.82,115.77,72.5472196]
[1743706194198,0.14216157,115.83,115.77,72.5472196]
[1743706194500,18.79181043,115.87,115.82,42.3150196]
[1743706194903,61.10683003,115.87,115.8,26.0]
[1743706195111,42.3150196,115.86,115.81,42.3150196]
[1743706195317,42.3150196,115.87,115.82,42.3150196]
[1743706196108,42.3150196,115.87,115.83,8.6333]
[1743706197502,42.3150196,115.87,115.83,30.2166]
[1743706197702,60.96466846,115.87,115.83,30.2166]
[1743706198399,144.6284,115.9,115.85,42.3150196]
[1743706198400,42.3150196,115.9,115.85,42.3150196]
[1743706198716,18.79181043,115.92,115.87,42.3150196]
[1743706198903,61.10683003,115.92,115.87,42.3150196]
[1743706200319,60.96466846,115.9,115.88,8.6296]
[1743706200520,18.64964886,115.88,115.84,30.2139]
[1743706200725,18.64964886,115.88,115.84,72.5289196]
[1743706201306,33.43959197,115.95,115.84,73.3768]
[1743706201503,42.3150196,115.92,115.84,73.3768]
[1743706201704,42.3150196,115.93,115.88,42.3150196]
[1743706201904,42.3150196,115.92,115.87,26.0]
[1743706202105,18.64964886,115.91,115.87,42.3150196]
[1743706202305,18.64964886,115.91,115.88,8.6296]
[1743706202505,18.64964886,115.91,115.88,30.2036]
[1743706202808,42.3150196,115.93,115.88,72.5186196]
[1743706203010,42.3150196,115.92,115.88,30.2036]
[1743706203328,18.64964886,115.92,115.88,30.2036]